fUST/lending_fUST_20260314
["ID","MTS","AMOUNT","RATE_DAILY","PERIOD"]
[408321584,1773420639910,-339.0,7.223e-05,2]
[408321585,1773420639919,-351.0,7.223e-05,2]
[408321586,1773420639929,-339.0,7.223e-05,2]
[408321587,1773420639939,-351.0,7.223e-05,2]
[408321588,1773420639948,-339.0,7.223e-05,2]
[408321589,1773420639957,-351.0,7.223e-05,2]
[408321590,1773420639966,-339.0,7.223e-05,2]
[408321591,1773420639975,-467.67273349,7.223e-05,2]
[408321593,1773420639985,-339.0,7.223e-05,2]
[408321594,1773420639994,-690.0,7.223e-05,2]
[408321595,1773420640004,-339.0,7.223e-05,2]
[408321596,1773420640013,-690.0,7.223e-05,2]
[408321597,1773420640022,-446.12652482,7.223e-05,2]
[408321598,1773420640033,-690.0,7.223e-05,2]
[408321599,1773420640043,-690.0,7.223e-05,2]
[408321600,1773420640052,-690.0,7.223e-05,2]
[408321601,1773420640063,-690.0,7.223e-05,2]
[408321602,1773420640072,-690.0,7.223e-05,2]
[408321603,1773420640083,-690.0,7.223e-05,2]
[408321604,1773420640093,-690.0,7.223e-05,2]
[408321605,1773420640102,-690.0,7.223e-05,2]
[408321606,1773420640112,-690.0,7.223e-05,2]
[408321607,1773420640122,-544.8132352,7.223e-05,2]
[408321608,1773420640132,-1000.0,7.251e-05,2]
[408321609,1773420640142,-492.0,7.251e-05,2]
[408321610,1773420640153,-478.63952807,7.288e-05,2]
[408321611,1773420640163,-478.63952807,7.342e-05,2]
[408321612,1773420640172,-1500.0,7.355e-05,2]
[408321613,1773420640182,-1500.0,7.355e-05,2]
[408321614,1773420640192,-478.63952807,7.37e-05,2]
[408321615,1773420640206,-478.63952807,7.397e-05,2]
[408321616,1773420640219,-2195.0,7.423e-05,2]
[408321617,1773420640229,-640.0,7.423e-05,2]
[408321618,1773420640239,-155.07,7.423e-05,2]
[408321619,1773420640250,-1892.11206021,7.448e-05,2]
[408321620,1773420640261,-478.63952807,7.452e-05,2]
[408321621,1773420640272,-478.75725327,7.47e-05,2]
[408321622,1773420640282,-174.61919141,7.47e-05,2]
[408321623,1773420640293,-578.20924308,7.47e-05,2]
[408321624,1773420640302,-2312.83697232,7.47e-05,2]
[408321625,1773420640312,-478.63952807,7.479e-05,2]
[408321626,1773420640322,-478.63952807,7.507e-05,2]
[408321627,1773420640332,-478.63952807,7.534e-05,2]
[408321628,1773420640342,-478.63952807,7.589e-05,2]
[408321629,1773420640351,-478.63952807,7.616e-05,2]
[408321630,1773420640361,-478.63952807,7.644e-05,2]
[408321631,1773420640371,-478.63952807,7.699e-05,2]
[408321632,1773420640380,-168.3888056,7.743e-05,2]
[408321633,1773420640390,-1500.0,7.758e-05,2]
[408321634,1773420640400,-500.0,7.799e-05,2]
[408321635,1773420640410,-787.0,7.9e-05,2]
[408321636,1773420640420,-2000.0,7.903e-05,2]
[408321637,1773420640429,-2000.0,7.903e-05,2]
[408321638,1773420640439,-150.0,7.938e-05,2]
[408321639,1773420640448,-150.0,7.938e-05,2]
[408321640,1773420640458,-150.093,7.938e-05,2]
[408321641,1773420640467,-151.806,7.938e-05,2]
[408321642,1773420640476,-1000.0,7.976e-05,2]
[408321643,1773420640486,-791.0,7.976e-05,2]
[408321644,1773420640496,-2000.0,8e-05,2]
[408321645,1773420640506,-496.47127164,8.018e-05,2]
[408321646,1773420640515,-181.08010149,8.018e-05,2]
[408321647,1773420640525,-599.60298507,8.018e-05,2]
[408321648,1773420640535,-2398.4119403,8.018e-05,2]
[408321649,1773420640544,-500.0,8.19e-05,2]
[408321650,1773420640554,-331.7501667,8.19e-05,2]
[408321651,1773420640564,-500.0,8.191e-05,2]
[408321652,1773420640573,-148261.21509182,8.191e-05,2]
[408321653,1773420640583,-158.0,8.2e-05,2]
[408321654,1773420640592,-156.16792739,8.219e-05,2]
[408321655,1773420640602,-158.77726265,8.219e-05,2]
[408321656,1773420640611,-173.71062214,8.219e-05,2]
[408321657,1773420640620,-151.73278917,8.219e-05,2]
[408321658,1773420640630,-500.0,8.219e-05,2]
[408321659,1773420640640,-500.0,8.219e-05,2]
[408321660,1773420640650,-500.0,8.219e-05,2]
[408321661,1773420640660,-240.15493389,8.219e-05,2]
[408321662,1773420640671,-289.60823028,8.219e-05,2]
[408321663,1773420640680,-772.0,8.219e-05,2]
[408321664,1773420640690,-500.0,8.219e-05,2]
[408321665,1773420640700,-500.0,8.219e-05,2]
[408321666,1773420640710,-500.0,8.219e-05,2]
[408321667,1773420640719,-500.0,8.219e-05,2]
[408321668,1773420640730,-500.0,8.219e-05,2]
[408321669,1773420640740,-500.0,8.219e-05,2]
[408321670,1773420640751,-500.0,8.219e-05,2]
[408321671,1773420640763,-500.0,8.219e-05,2]
[408321672,1773420640773,-500.0,8.219e-05,2]
[408321673,1773420640783,-399.43842636,8.219e-05,2]
[408321674,1773420640792,-500.0,8.219e-05,2]
[408321675,1773420640802,-405.22449813,8.219e-05,2]
[408321676,1773420640811,-446.43843716,8.222e-05,2]
[408321677,1773420640821,-500.0,8.274e-05,2]
[408321678,1773420640831,-500.0,8.274e-05,2]
[408321679,1773420640841,-500.0,8.274e-05,2]
[408321680,1773420640851,-772.0,8.274e-05,2]
[408321681,1773420640860,-500.0,8.274e-05,2]
[408321682,1773420640870,-500.0,8.274e-05,2]
[408321683,1773420640879,-500.0,8.274e-05,2]
[408321684,1773420640889,-500.0,8.274e-05,2]
[408321685,1773420640898,-500.0,8.274e-05,2]
[408321686,1773420640908,-500.0,8.274e-05,2]
[408321687,1773420640917,-500.0,8.274e-05,2]
[408321688,1773420640928,-500.0,8.274e-05,2]
[408321689,1773420640938,-2000.0,8.306e-05,2]
[408321690,1773420640947,-500.0,8.329e-05,2]
[408321691,1773420640957,-493.12421228,8.329e-05,2]
[408321692,1773420640968,-500.0,8.329e-05,2]
[408321693,1773420640978,-772.0,8.329e-05,2]
[408321694,1773420640988,-500.0,8.329e-05,2]
[408321695,1773420640997,-500.0,8.329e-05,2]
[408321696,1773420641007,-273.67381979,8.329e-05,2]
[408321697,1773420641016,-186.89935515,8.329e-05,2]
[408321698,1773420641025,-600.56315041,8.329e-05,2]
[408321699,1773420641035,-500.0,8.329e-05,2]
[408321700,1773420641045,-566.50733705,8.329e-05,2]
[408321701,1773420641054,-632.68755805,8.329e-05,2]
[408321702,1773420641064,-500.0,8.329e-05,2]
[408321703,1773420641073,-172.63016517,8.329e-05,2]
[408321704,1773420641083,-500.0,8.329e-05,2]
[408321705,1773420641093,-500.0,8.383e-05,2]
[408321706,1773420641103,-500.0,8.383e-05,2]
[408321707,1773420641112,-772.0,8.383e-05,2]
[408321708,1773420641121,-500.0,8.383e-05,2]
[408321709,1773420641131,-500.0,8.383e-05,2]
[408321710,1773420641140,-500.0,8.383e-05,2]
[408321711,1773420641151,-500.0,8.383e-05,2]
[408321712,1773420641160,-500.0,8.383e-05,2]
[408321713,1773420641170,-500.0,8.438e-05,2]
[408321714,1773420641180,-500.0,8.438e-05,2]
[408321715,1773420641190,-772.0,8.438e-05,2]
[408321716,1773420641199,-295.8226361,8.438e-05,2]
[408321717,1773420641210,-500.0,8.438e-05,2]
[408321718,1773420641223,-500.0,8.438e-05,2]
[408321719,1773420641233,-157.63602865,8.438e-05,2]
[408321720,1773420641243,-500.0,8.438e-05,2]
[408321721,1773420641255,-500.0,8.438e-05,2]
[408321722,1773420641265,-2500.0,8.451e-05,2]
[408321723,1773420641274,-2500.0,8.451e-05,2]
[408321724,1773420641283,-13543.15275119,8.457e-05,2]
[408321725,1773420641295,-611.5401322,8.493e-05,2]
[408321726,1773420641304,-199.35880581,8.493e-05,2]
[408321727,1773420641313,-500.0,8.493e-05,2]
[408321728,1773420641323,-772.0,8.493e-05,2]
[408321729,1773420641332,-500.0,8.493e-05,2]
[408321730,1773420641342,-214.34937147,8.493e-05,2]
[408321731,1773420641351,-500.0,8.493e-05,2]
[408321732,1773420641360,-500.0,8.493e-05,2]
[408321733,1773420641371,-500.0,8.493e-05,2]
[408321734,1773420641380,-500.0,8.493e-05,2]
[408321735,1773420641391,-500.0,8.548e-05,2]
[408321736,1773420641401,-772.0,8.548e-05,2]
[408321737,1773420641411,-500.0,8.548e-05,2]
[408321738,1773420641420,-500.0,8.548e-05,2]
[408321739,1773420641430,-444.60418314,8.548e-05,2]
[408321740,1773420641440,-500.0,8.548e-05,2]
[408321741,1773420641450,-514.84070869,8.566e-05,2]
[408321742,1773420641459,-187.78006525,8.566e-05,2]
[408321743,1773420641469,-621.78829552,8.566e-05,2]
[408321744,1773420641478,-2487.15318209,8.566e-05,2]
[408321745,1773420641488,-500.0,8.603e-05,2]
[408321746,1773420641498,-772.0,8.603e-05,2]
[408321747,1773420641507,-500.0,8.603e-05,2]
[408321748,1773420641516,-500.0,8.603e-05,2]
[408321749,1773420641526,-199.45190182,8.603e-05,2]
[408321750,1773420641536,-500.0,8.657e-05,2]
[408321751,1773420641545,-772.0,8.657e-05,2]
[408321752,1773420641555,-627.27258677,8.657e-05,2]
[408321753,1773420641564,-414.56678396,8.657e-05,2]
[408321754,1773420641574,-190.99312253,8.685e-05,2]
[408321755,1773420641584,-217.66587791,8.712e-05,2]
[408321756,1773420641594,-772.0,8.712e-05,2]
[408321757,1773420641604,-772.0,8.767e-05,2]
[408321758,1773420641614,-500.0,8.767e-05,2]
[408321759,1773420641624,-1000.0,8.774e-05,2]
[408321760,1773420641633,-1000.0,8.774e-05,2]
[408321761,1773420641642,-158.0,8.8e-05,2]
[408321762,1773420641652,-273.16772571,8.816e-05,2]
[408321763,1773420641662,-772.0,8.822e-05,2]
[408321764,1773420641673,-188.48582678,8.854e-05,2]
[408321765,1773420641682,-2500.0,8.854e-05,2]
[408321766,1773420641692,-772.0,8.877e-05,2]
[408321767,1773420641702,-3267.502766,8.904e-05,2]
[408321768,1773420641712,-772.0,8.931e-05,2]
[408321769,1773420641722,-300.0,8.973e-05,2]
[408321770,1773420641732,-772.0,8.986e-05,2]
[408321771,1773420641743,-3000.0,8.999e-05,2]
[408321772,1773420641752,-3000.0,8.999e-05,2]
[408321773,1773420641762,-5086.40465996,9e-05,2]
[408321774,1773420641771,-2000.0,9e-05,2]
[408321775,1773420641780,-158.0,9e-05,2]
[408321776,1773420641789,-5000.0,9e-05,2]
[408321777,1773420641799,-5000.0,9e-05,2]
[408321778,1773420641808,-5000.0,9e-05,2]
[408321779,1773420641818,-5000.0,9e-05,2]
[408321780,1773420641827,-5000.0,9e-05,2]
[408321781,1773420641837,-500.0,9e-05,2]
[408321782,1773420641846,-500.0,9e-05,2]
[408321783,1773420641856,-500.0,9e-05,2]
[408321784,1773420641866,-500.0,9e-05,2]
[408321785,1773420641875,-500.0,9e-05,2]
[408321786,1773420641883,-500.0,9e-05,2]
[408321787,1773420641893,-500.0,9e-05,2]
[408321788,1773420641903,-500.0,9e-05,2]
[408321789,1773420641913,-500.0,9e-05,2]
[408321790,1773420641923,-500.0,9e-05,2]
[408321791,1773420641932,-500.0,9e-05,2]
[408321792,1773420641941,-500.0,9e-05,2]
[408321793,1773420641951,-500.0,9e-05,2]
[408321794,1773420641960,-500.0,9e-05,2]
[408321795,1773420641970,-500.0,9e-05,2]
[408321796,1773420641979,-500.0,9e-05,2]
[408321797,1773420641988,-500.0,9e-05,2]
[408321798,1773420641997,-500.0,9e-05,2]
[408321799,1773420642007,-500.0,9e-05,2]
[408321800,1773420642018,-500.0,9e-05,2]
[408321801,1773420642027,-500.0,9e-05,2]
[408321802,1773420642038,-500.0,9e-05,2]
[408321803,1773420642049,-500.0,9e-05,2]
[408321804,1773420642059,-500.0,9e-05,2]
[408321805,1773420642068,-500.0,9e-05,2]
[408321806,1773420642078,-500.0,9e-05,2]
[408321807,1773420642087,-500.0,9e-05,2]
[408321808,1773420642097,-500.0,9e-05,2]
[408321809,1773420642106,-500.0,9e-05,2]
[408321810,1773420642115,-500.0,9e-05,2]
[408321811,1773420642124,-500.0,9e-05,2]
[408321812,1773420642134,-500.0,9e-05,2]
[408321813,1773420642143,-500.0,9e-05,2]
[408321814,1773420642153,-500.0,9e-05,2]
[408321815,1773420642162,-500.0,9e-05,2]
[408321816,1773420642172,-500.0,9e-05,2]
[408321817,1773420642182,-500.0,9e-05,2]
[408321818,1773420642191,-500.0,9e-05,2]
[408321819,1773420642202,-500.0,9e-05,2]
[408321820,1773420642213,-500.0,9e-05,2]
[408321821,1773420642225,-500.0,9e-05,2]
[408321822,1773420642235,-500.0,9e-05,2]
[408321823,1773420642244,-500.0,9e-05,2]
[408321824,1773420642255,-500.0,9e-05,2]
[408321825,1773420642264,-500.0,9e-05,2]
[408321826,1773420642274,-500.0,9e-05,2]
[408321828,1773420642284,-500.0,9e-05,2]
[408321830,1773420642296,-500.0,9e-05,2]
[408321832,1773420642305,-500.0,9e-05,2]
[408321834,1773420642315,-500.0,9e-05,2]
[408321835,1773420642325,-500.0,9e-05,2]
[408321836,1773420642335,-500.0,9e-05,2]
[408321837,1773420642344,-500.0,9e-05,2]
[408321866,1773420642543,-500.0,9e-05,2]
[408321867,1773420642580,-500.0,9e-05,2]
[408321868,1773420642590,-500.0,9e-05,2]
[408321869,1773420642599,-500.0,9e-05,2]
[408321870,1773420642608,-500.0,9e-05,2]
[408321871,1773420642618,-500.0,9e-05,2]
[408321872,1773420642627,-500.0,9e-05,2]
[408321873,1773420642637,-500.0,9e-05,2]
[408321874,1773420642647,-500.0,9e-05,2]
[408321875,1773420642657,-500.0,9e-05,2]
[408321876,1773420642666,-500.0,9e-05,2]
[408321878,1773420642676,-500.0,9e-05,2]
[408321879,1773420642686,-500.0,9e-05,2]
[408321880,1773420642695,-500.0,9e-05,2]
[408321881,1773420642706,-500.0,9e-05,2]
[408321882,1773420642717,-500.0,9e-05,2]
[408321883,1773420642727,-500.0,9e-05,2]
[408321884,1773420642739,-500.0,9e-05,2]
[408321885,1773420642749,-500.0,9e-05,2]
[408321886,1773420642758,-500.0,9e-05,2]
[408321887,1773420642767,-500.0,9e-05,2]
[408321888,1773420642777,-500.0,9e-05,2]
[408321889,1773420642787,-500.0,9e-05,2]
[408321890,1773420642797,-500.0,9e-05,2]
[408321891,1773420642807,-500.0,9e-05,2]
[408321892,1773420642817,-500.0,9e-05,2]
[408321893,1773420642827,-500.0,9e-05,2]
[408321894,1773420642836,-500.0,9e-05,2]
[408321895,1773420642846,-500.0,9e-05,2]
[408321896,1773420642855,-500.0,9e-05,2]
[408321897,1773420642864,-500.0,9e-05,2]
[408321898,1773420642874,-500.0,9e-05,2]
[408321899,1773420642884,-500.0,9e-05,2]
[408321900,1773420642893,-500.0,9e-05,2]
[408321901,1773420642903,-500.0,9e-05,2]
[408321902,1773420642912,-500.0,9e-05,2]
[408321903,1773420642921,-500.0,9e-05,2]
[408321904,1773420642931,-500.0,9e-05,2]
[408321905,1773420642940,-500.0,9e-05,2]
[408321906,1773420642950,-500.0,9e-05,2]
[408321907,1773420642960,-500.0,9e-05,2]
[408321908,1773420642969,-500.0,9e-05,2]
[408321909,1773420642979,-500.0,9e-05,2]
[408321910,1773420642989,-500.0,9e-05,2]
[408321911,1773420642999,-500.0,9e-05,2]
[408321912,1773420643008,-500.0,9e-05,2]
[408321913,1773420643018,-500.0,9e-05,2]
[408321914,1773420643028,-6985.38703055,9e-05,2]
[408321915,1773420643037,-3267.502766,9.015e-05,2]
[408321916,1773420643048,-5018.89903998,9.025e-05,2]
[408321917,1773420643057,-5000.0,9.025e-05,2]
[408321918,1773420643067,-5000.0,9.025e-05,2]
[408321919,1773420643077,-5000.0,9.025e-05,2]
[408321920,1773420643087,-5000.0,9.025e-05,2]
[408321921,1773420643097,-772.0,9.041e-05,2]
[408321922,1773420643106,-500.0,9.041e-05,2]
[408321923,1773420643116,-772.0,9.096e-05,2]
[408321924,1773420643125,-174.61919141,9.112e-05,2]
[408321925,1773420643137,-281.70137746,9.114e-05,2]
[408321926,1773420643147,-194.72792766,9.114e-05,2]
[408321927,1773420643157,-644.79446246,9.114e-05,2]
[408321928,1773420643167,-2579.17784983,9.114e-05,2]
[408321929,1773420643178,-3267.502766,9.127e-05,2]
[408321930,1773420643188,-267.82,9.129e-05,2]
[408321931,1773420643199,-772.0,9.151e-05,2]
[408321932,1773420643209,-772.0,9.205e-05,2]
[408321933,1773420643221,-3267.502766,9.238e-05,2]
[408321934,1773420643231,-772.0,9.26e-05,2]
[408321935,1773420643241,-772.0,9.315e-05,2]
[408321936,1773420643250,-500.0,9.315e-05,2]
[408321937,1773420643263,-3267.502766,9.349e-05,2]
[408321938,1773420643273,-772.0,9.37e-05,2]
[408321939,1773420643282,-3000.0,9.402e-05,2]
[408321940,1773420643292,-772.0,9.424e-05,2]
[408321941,1773420643302,-792.38275315,9.479e-05,2]
[408321942,1773420643311,-600.0,9.521e-05,2]
[408321943,1773420643321,-3500.0,9.547e-05,2]
[408321944,1773420643331,-3500.0,9.547e-05,2]
[408321945,1773420643340,-500.0,9.561e-05,2]
[408321946,1773420643349,-165.55,9.569e-05,2]
[408321947,1773420643359,-500.0,9.589e-05,2]
[408321948,1773420643369,-151.0,9.589e-05,2]
[408321949,1773420643379,-151.0,9.589e-05,2]
[408321950,1773420643388,-151.0,9.589e-05,2]
[408321951,1773420643398,-154.46636,9.589e-05,2]
[408321952,1773420643407,-306.81123592,9.59e-05,2]
[408321953,1773420643418,-800.0,9.62e-05,2]
[408321954,1773420643428,-559.71798088,9.633e-05,2]
[408321955,1773420643439,-800.0,9.646e-05,2]
[408321956,1773420643450,-1000.0,9.651e-05,2]
[408321957,1773420643460,-1000.0,9.651e-05,2]
[408321958,1773420643470,-579.0,9.651e-05,2]
[408321959,1773420643480,-201.93286099,9.662e-05,2]
[408321960,1773420643489,-668.65185757,9.662e-05,2]
[408321961,1773420643499,-2674.60743027,9.662e-05,2]
[408321962,1773420643509,-800.0,9.665e-05,2]
[408321963,1773420643520,-218.58662236,9.688e-05,2]
[408321964,1773420643530,-800.0,9.69e-05,2]
[408321965,1773420643541,-331.9,9.69e-05,2]
[408321966,1773420643551,-800.0,9.702e-05,2]
[408321967,1773420643561,-554.73083502,9.714e-05,2]
[408321968,1773420643572,-800.0,9.724e-05,2]
[408321969,1773420643582,-258.60617444,9.725e-05,2]
[408321970,1773420643592,-800.0,9.743e-05,2]
[408321971,1773420643601,-331.9,9.744e-05,2]
[408321972,1773420643611,-3000.0,9.75e-05,7]
[408321973,1773420643620,-3000.0,9.75e-05,7]
[408321974,1773420643629,-3000.0,9.75e-05,7]
[408321975,1773420643639,-3000.0,9.75e-05,7]
[408321976,1773420643649,-3000.0,9.75e-05,7]
[408321977,1773420643659,-3000.0,9.75e-05,7]
[408321978,1773420643669,-3000.0,9.75e-05,7]
[408321979,1773420643678,-3000.0,9.75e-05,7]
[408321980,1773420643688,-2661.0,9.75e-05,7]
[408321981,1773420643699,-1700.0,9.75e-05,7]
[408321982,1773420643709,-1700.0,9.75e-05,7]
[408321983,1773420643719,-1407.0,9.75e-05,7]
[408321984,1773420643729,-800.0,9.768e-05,2]
[408321985,1773420643739,-800.0,9.783e-05,2]
[408321986,1773420643749,-331.9,9.797e-05,2]
[408321987,1773420643760,-158.0,9.8e-05,2]
[408321988,1773420643770,-158.0,9.8e-05,2]
[408321989,1773420643780,-158.0,9.8e-05,2]
[408321990,1773420643790,-800.0,9.813e-05,2]
[408321991,1773420643799,-800.0,9.817e-05,2]
[408321992,1773420643809,-800.0,9.824e-05,2]
[408321993,1773420643818,-800.0,9.834e-05,2]
[408321994,1773420643828,-800.0,9.85e-05,2]
[408321995,1773420643837,-331.9,9.851e-05,2]
[408321996,1773420643847,-240.28201912,9.862e-05,2]
[408321997,1773420643857,-800.0,9.863e-05,2]
[408321998,1773420643867,-500.0,9.863e-05,2]
[408321999,1773420643877,-800.0,9.876e-05,2]
[408322000,1773420643886,-800.0,9.885e-05,2]
[408322001,1773420643896,-3250.0,9.898e-05,7]
[408322002,1773420643905,-3250.0,9.898e-05,7]
[408322003,1773420643914,-3250.0,9.898e-05,7]
[408322004,1773420643926,-3250.0,9.898e-05,7]
[408322005,1773420643936,-3250.0,9.898e-05,7]
[408322006,1773420643946,-3250.0,9.898e-05,7]
[408322007,1773420643956,-6814.08835454,9.898e-05,2]
[408322008,1773420643966,-470258.3398213,9.9e-05,2]
[408322009,1773420643976,-331.9,9.905e-05,2]
[408322010,1773420643986,-173.17797892,9.94e-05,2]
[408322011,1773420643995,-3500.0,9.95e-05,2]
[408322012,1773420644005,-331.9,9.958e-05,2]
[408322013,1773420644015,-1400.01393718,9.998e-05,6]
[408322014,1773420644023,-544.00577238,0.0001,2]
[408322015,1773420644034,-500.0,0.0001,2]
[408322016,1773420644043,-722.15659688,0.0001,2]
[408322017,1773420644052,-500.0,0.0001,2]
[408322018,1773420644062,-500.0,0.0001,2]
[408322019,1773420644072,-649.40442362,0.0001,2]
[408322020,1773420644082,-500.0,0.0001,2]
[408322021,1773420644091,-500.0,0.0001,2]
[408322022,1773420644101,-250.57043169,0.0001,2]
[408322023,1773420644111,-237033.26316048,0.0001,2]
[408322024,1773420644131,-1156604.77405975,0.0001,2]
[408322025,1773420644141,-3000.0,0.0001,2]
[408322026,1773420644151,-200.0,0.0001,2]
[408322027,1773420644161,-2000.0,0.0001,2]
[408322028,1773420644171,-6022.18977549,0.0001,30]
[408322029,1773420644181,-19844.69951797,0.0001,2]
[408322030,1773420644190,-1966.60972223,0.0001,2]
[408322031,1773420644200,-194.89102347,0.0001,2]
[408322032,1773420644209,-11593.30657465,0.0001,2]
[408322033,1773420644221,-151.0,0.0001,2]
[408322034,1773420644232,-151.0,0.0001,2]
[408322035,1773420644242,-151.0,0.0001,2]
[408322036,1773420644251,-151.0,0.0001,2]
[408322037,1773420644263,-151.0,0.0001,2]
[408322038,1773420644273,-180.0,0.0001,2]
[408322039,1773420644283,-151.0,0.0001,2]
[408322040,1773420644294,-151.0,0.0001,2]
[408322041,1773420644304,-151.0,0.0001,2]
[408322042,1773420644313,-151.0,0.0001,2]
[408322043,1773420644323,-151.0,0.0001,2]
[408322044,1773420644332,-151.0,0.0001,2]
[408322045,1773420644342,-151.0,0.0001,2]
[408322046,1773420644353,-151.0,0.0001,2]
[408322047,1773420644362,-151.0,0.0001,2]
[408322048,1773420644372,-151.0,0.0001,2]
[408322049,1773420644381,-151.0,0.0001,2]
[408322050,1773420644391,-151.0,0.0001,2]
[408322051,1773420644401,-151.0,0.0001,2]
[408322052,1773420644411,-151.0,0.0001,2]
[408322053,1773420644420,-159.40559159,0.0001,2]
[408322054,1773420644430,-151.0,0.0001,2]
[408322055,1773420644439,-151.0,0.0001,2]
[408322056,1773420644450,-151.0,0.0001,2]
[408322057,1773420644459,-151.0,0.0001,2]
[408322058,1773420644469,-151.0,0.0001,2]
[408322059,1773420644479,-273.49749433,0.0001,2]
[408322060,1773420644489,-1666.81170334,0.0001,2]
[408322061,1773420644498,-1666.81170334,0.0001,2]
[408322062,1773420644508,-331.9,0.00010012,2]
[408322063,1773420644517,-331.9,0.00010066,2]
[408322064,1773420644527,-900.0,0.00010068,2]
[408322065,1773420644537,-267.82,0.00010069,2]
[408322066,1773420644547,-2013.48354749,0.00010095,2]
[408322067,1773420644556,-4000.0,0.00010095,2]
[408322068,1773420644566,-331.9,0.00010119,2]
[408322069,1773420644575,-500.0,0.00010137,2]
[408322070,1773420644585,-331.9,0.00010173,2]
[408322071,1773420644595,-701.39664536,0.000102,2]
[408322072,1773420644604,-5000.0,0.000102,2]
[408322073,1773420644614,-9953.9,0.000102,2]
[408322074,1773420644623,-284.86,0.000102,2]
[408322075,1773420644633,-178.60936445,0.000102,2]
[408322076,1773420644645,-150.0,0.000102,2]
[408322077,1773420644654,-170.0988131,0.000102,2]
[408322078,1773420644664,-212.94,0.000102,2]
[408322079,1773420644675,-209.40437684,0.0001021,2]
[408322080,1773420644684,-693.3919763,0.0001021,2]
[408322081,1773420644694,-2773.56790519,0.0001021,2]
[408322082,1773420644703,-505.52587737,0.00010222,2]
[408322083,1773420644712,-331.9,0.00010227,2]
[408322084,1773420644722,-331.9,0.00010281,2]
[408322085,1773420644732,-5000.0,0.00010302,2]
[408322086,1773420644741,-331.9,0.00010334,2]
[408322087,1773420644751,-331.9,0.00010388,2]
[408322088,1773420644760,-5000.0,0.00010404,2]
[408322089,1773420644770,-500.0,0.00010411,2]
[408322090,1773420644781,-2195.0,0.00010423,2]
[408322091,1773420644790,-640.0,0.00010423,2]
[408322092,1773420644800,-331.9,0.00010442,2]
[408322093,1773420644810,-181.08010149,0.00010481,2]
[408322094,1773420644820,-331.9,0.00010495,2]
[408322095,1773420644830,-3742.99344664,0.00010498,2]
[408322096,1773420644840,-331.9,0.00010549,2]
[408322097,1773420644849,-331.9,0.00010603,2]
[408322098,1773420644859,-1000.0,0.00010616,2]
[408322099,1773420644869,-1000.0,0.00010616,2]
[408322100,1773420644879,-1000.0,0.00010616,2]
[408322101,1773420644890,-1200.0,0.00010616,2]
[408322102,1773420644900,-4500.0,0.00010643,2]
[408322103,1773420644911,-331.9,0.00010656,2]
[408322104,1773420644921,-500.0,0.00010685,2]
[408322105,1773420644931,-624.06983227,0.0001071,2]
[408322106,1773420644941,-331.9,0.0001071,2]
[408322107,1773420644950,-264.51559331,0.00010758,2]
[408322108,1773420645022,-334.95043373,0.00010758,2]
[408322109,1773420645032,-2876.18991768,0.00010758,2]
[408322110,1773420645041,-1963.5,0.000109,2]
[408322111,1773420645051,-182.17848381,0.00010931,13]
[408322112,1773420645060,-150.0,0.00010938,2]
[408322113,1773420645070,-150.0,0.00010938,2]
[408322114,1773420645079,-150.0,0.00010938,2]
[408322115,1773420645088,-5000.0,0.00010958,2]
[408322116,1773420645098,-201.15579085,0.00010959,2]
[408322117,1773420645107,-500.0,0.00010959,2]